fUST/lending_fUST_20240704
["ID","MTS","AMOUNT","RATE_DAILY","PERIOD"]
[331099558,1720079441760,-500.0,0.00014465,2]
[331099559,1720079441769,-1798.46,0.00014465,2]
[331099560,1720079441779,-2261.6,0.00014465,2]
[331099561,1720079441788,-1203.83,0.00014465,2]
[331099562,1720079441801,-500.0,0.00014465,2]
[331099563,1720079441812,-500.0,0.00014465,2]
[331099564,1720079441821,-500.0,0.00014465,2]
[331099565,1720079441831,-1025.89,0.00014465,2]
[331099566,1720079441840,-500.0,0.00014465,2]
[331099567,1720079441850,-500.0,0.00014465,2]
[331099568,1720079441860,-2172.15,0.00014465,2]
[331099569,1720079441869,-374.90378399,0.00014465,2]
[331099570,1720079441879,-4109.01,0.00014465,2]
[331099571,1720079441889,-500.0,0.00014465,2]
[331099572,1720079441898,-13714.63,0.00014465,2]
[331099573,1720079441907,-500.0,0.00014465,2]
[331099574,1720079441917,-563.77,0.00014465,2]
[331099575,1720079441926,-500.0,0.00014465,2]
[331099576,1720079441939,-1619.75,0.00014465,2]
[331099577,1720079441948,-2789.39,0.00014465,2]
[331099578,1720079441957,-500.0,0.00014465,2]
[331099579,1720079441966,-500.0,0.00014467,2]
[331099580,1720079441976,-500.0,0.00014467,2]
[331099581,1720079441985,-7608.44,0.00014467,2]
[331099582,1720079441994,-500.0,0.00014467,2]
[331099583,1720079442003,-500.0,0.00014467,2]
[331099584,1720079442012,-677.95,0.00014467,2]
[331099585,1720079442021,-500.0,0.00014467,2]
[331099586,1720079442030,-500.0,0.00014467,2]
[331099587,1720079442039,-1440.72,0.00014467,2]
[331099588,1720079442048,-783.31,0.00014467,2]
[331099589,1720079442057,-500.0,0.00014467,2]
[331099590,1720079442066,-500.0,0.00014467,2]
[331099591,1720079442075,-500.0,0.00014467,2]
[331099592,1720079442084,-4010.35,0.00014467,2]
[331099593,1720079442093,-642.37189601,0.00014467,2]
[331099594,1720079442103,-886.2,0.00014467,2]
[331099595,1720079442112,-510.86,0.00014467,2]
[331099596,1720079442122,-500.0,0.00014467,2]
[331099597,1720079442130,-500.0,0.00014467,2]
[331099598,1720079442139,-500.0,0.00014467,2]
[331099599,1720079442148,-500.0,0.00014467,2]
[331099600,1720079442157,-1012.58,0.00014475,2]
[331099601,1720079442166,-500.0,0.00014475,2]
[331099602,1720079442175,-500.0,0.00014475,2]
[331099603,1720079442189,-500.0,0.00014475,2]
[331099604,1720079442198,-1348.2,0.00014475,2]
[331099605,1720079442207,-500.0,0.00014475,2]
[331099606,1720079442217,-451.78659027,0.00014475,2]
[331099607,1720079442226,-559.8,0.00014475,2]
[331099608,1720079442235,-809.38,0.00014475,2]
[331099609,1720079442244,-1091.81,0.00014475,2]
[331099610,1720079442253,-500.0,0.00014475,2]
[331099611,1720079442262,-500.0,0.00014475,2]
[331099612,1720079442271,-721.18,0.00014475,2]
[331099613,1720079442280,-500.0,0.00014475,2]
[331099614,1720079442289,-500.0,0.00014475,2]
[331099615,1720079442298,-619.93,0.00014475,2]
[331099616,1720079442306,-500.0,0.00014475,2]
[331099617,1720079442315,-500.0,0.00014475,2]
[331099618,1720079442324,-500.0,0.00014475,2]
[331099619,1720079442334,-500.0,0.00014475,2]
[331099620,1720079442342,-567.87,0.00014475,2]
[331099621,1720079442351,-500.0,0.00014475,2]
[331099622,1720079442360,-1196.33,0.00014475,2]
[331099623,1720079442371,-667.84,0.00014475,2]
[331099624,1720079442381,-500.0,0.00014475,2]
[331099625,1720079442390,-500.0,0.00014475,2]
[331099626,1720079442399,-1053.22,0.00014475,2]
[331099627,1720079442408,-500.0,0.00014475,2]
[331099628,1720079442417,-500.0,0.00014475,2]
[331099629,1720079442426,-4978.4,0.00014475,2]
[331099630,1720079442437,-500.0,0.00014475,2]
[331099631,1720079442446,-500.0,0.00014475,2]
[331099632,1720079442455,-500.0,0.00014475,2]
[331099633,1720079442464,-700.16,0.00014475,2]
[331099634,1720079442474,-500.0,0.00014475,2]
[331099635,1720079442484,-500.0,0.00014475,2]
[331099636,1720079442493,-500.0,0.00014475,2]
[331099637,1720079442502,-797.62,0.00014475,2]
[331099638,1720079442511,-500.0,0.00014475,2]
[331099639,1720079442521,-500.0,0.00014475,2]
[331099641,1720079442531,-500.0,0.00014475,2]
[331099642,1720079442542,-500.0,0.00014475,2]
[331099643,1720079442552,-500.0,0.00014475,2]
[331099644,1720079442563,-500.0,0.00014475,2]
[331099645,1720079442572,-500.0,0.00014475,2]
[331099646,1720079442581,-500.0,0.00014475,2]
[331099647,1720079442590,-554.28,0.00014476,2]
[331099648,1720079442600,-637.11,0.00014476,2]
[331099649,1720079442609,-500.0,0.00014476,2]
[331099650,1720079442619,-500.0,0.00014476,2]
[331099651,1720079442628,-500.0,0.00014476,2]
[331099653,1720079442637,-500.0,0.00014476,2]
[331099655,1720079442647,-539.64587454,0.00014476,2]
[331099657,1720079442656,-500.0,0.00014476,2]
[331099659,1720079442666,-500.0,0.00014476,2]
[331099661,1720079442675,-500.56,0.00014476,2]
[331099662,1720079442688,-500.0,0.00014476,2]
[331099664,1720079442696,-500.0,0.00014476,2]
[331099665,1720079442705,-500.0,0.00014476,2]
[331099667,1720079442717,-505.15109191,0.00014476,2]
[331099669,1720079442727,-504.65022156,0.00014476,2]
[331099671,1720079442736,-500.0,0.00014476,2]
[331099672,1720079442745,-500.0,0.00014476,2]
[331099674,1720079442754,-500.0,0.00014476,2]
[331099676,1720079442764,-503.9261028,0.00014476,2]
[331099677,1720079442773,-500.0,0.00014476,2]
[331099679,1720079442782,-500.0,0.00014476,2]
[331099680,1720079442791,-500.0,0.00014476,2]
[331099682,1720079442803,-318.99000495,0.00014476,2]
[331099683,1720079442813,-500.0,0.00014476,2]
[331099686,1720079442822,-512.88295566,0.00014476,2]
[331099689,1720079442831,-500.0,0.00014476,2]
[331099691,1720079442840,-500.0,0.00014476,2]
[331099693,1720079442850,-540.73,0.00014476,2]
[331099695,1720079442859,-503.11282406,0.00014476,2]
[331099698,1720079442868,-518.47,0.00014476,2]
[331099702,1720079442879,-1440.72,0.00014476,2]
[331099706,1720079442890,-1440.72,0.00014476,2]
[331099709,1720079442899,-500.0,0.00014476,2]
[331099712,1720079442908,-500.0,0.00014476,2]
[331099715,1720079442918,-503.7523198,0.00014476,2]
[331099717,1720079442927,-508.58408897,0.00014476,2]
[331099720,1720079442938,-500.0,0.00014476,2]
[331099723,1720079442947,-500.0,0.00014476,2]
[331099726,1720079442956,-500.0,0.00014476,2]
[331099727,1720079442965,-500.0,0.00014476,2]
[331099730,1720079442975,-500.0,0.00014476,2]
[331099732,1720079442984,-500.0,0.00014476,2]
[331099734,1720079442996,-500.0,0.00014476,2]
[331099736,1720079443005,-500.0,0.00014476,2]
[331099737,1720079443014,-500.0,0.00014476,2]
[331099739,1720079443023,-500.0,0.00014476,2]
[331099741,1720079443032,-500.0,0.00014476,2]
[331099742,1720079443041,-505.56273882,0.00014476,2]
[331099745,1720079443051,-500.0,0.00014476,2]
[331099747,1720079443063,-500.0,0.00014476,2]
[331099748,1720079443072,-500.0,0.00014476,2]
[331099750,1720079443081,-500.0,0.00014476,2]
[331099752,1720079443090,-500.0,0.00014476,2]
[331099753,1720079443100,-500.0,0.00014476,2]
[331099755,1720079443108,-500.0,0.00014476,2]
[331099756,1720079443117,-500.0,0.00014476,2]
[331099757,1720079443126,-507.47065552,0.00014476,2]
[331099758,1720079443135,-500.0,0.00014476,2]
[331099759,1720079443143,-861.23,0.00014476,2]
[331099760,1720079443153,-524.62,0.00014476,2]
[331099761,1720079443162,-511.82,0.00014476,2]
[331099762,1720079443171,-500.0,0.00014476,2]
[331099763,1720079443183,-500.0,0.00014476,2]
[331099764,1720079443192,-658.89,0.00014476,2]
[331099765,1720079443201,-500.0,0.00014476,2]
[331099766,1720079443210,-500.0,0.00014476,2]
[331099768,1720079443220,-500.0,0.00014476,2]
[331099770,1720079443229,-500.0,0.00014476,2]
[331099771,1720079443239,-500.0,0.00014476,2]
[331099772,1720079443247,-713.83,0.00014476,2]
[331099773,1720079443257,-500.0,0.00014476,2]
[331099774,1720079443267,-552.24,0.00014476,2]
[331099775,1720079443276,-500.0,0.00014476,2]
[331099776,1720079443285,-500.0,0.00014476,2]
[331099777,1720079443294,-1440.72,0.00014477,2]
[331099778,1720079443303,-500.0,0.00014477,2]
[331099779,1720079443312,-500.0,0.00014477,2]
[331099780,1720079443321,-500.0,0.00014477,2]
[331099781,1720079443330,-330.99394844,0.00014477,2]
[331099782,1720079443339,-319.31866868,0.00014477,2]
[331099783,1720079443348,-500.0,0.00014477,2]
[331099784,1720079443357,-500.0,0.00014477,2]
[331099785,1720079443366,-501.81762391,0.00014477,2]
[331099786,1720079443377,-500.0,0.00014477,2]
[331099787,1720079443386,-500.0,0.00014477,2]
[331099788,1720079443397,-500.0,0.00014477,2]
[331099789,1720079443406,-500.0,0.00014478,2]
[331099790,1720079443416,-500.0,0.00014478,2]
[331099791,1720079443425,-10430.62,0.00014478,2]
[331099792,1720079443435,-500.0,0.00014479,2]
[331099793,1720079443444,-500.0,0.00014479,2]
[331099794,1720079443453,-500.0,0.00014479,2]
[331099795,1720079443462,-5073.79,0.00014479,2]
[331099796,1720079443471,-849.5,0.00014479,2]
[331099797,1720079443480,-500.0,0.00014479,2]
[331099798,1720079443489,-585.38,0.00014479,2]
[331099800,1720079443498,-766.97,0.00014479,2]
[331099802,1720079443507,-5644.26,0.00014479,2]
[331099804,1720079443517,-3089.51,0.00014479,2]
[331099805,1720079443525,-1440.72,0.00014487,2]
[331099806,1720079443534,-500.0,0.00014732,2]
[331099807,1720079443543,-500.0,0.00014739,2]
[331099808,1720079443552,-500.0,0.00014739,2]
[331099809,1720079443561,-500.0,0.00014739,2]
[331099810,1720079443570,-729.02,0.00014739,2]
[331099811,1720079443579,-257.32,0.00014739,2]
[331099812,1720079443588,-500.0,0.00014739,2]
[331099813,1720079443597,-500.0,0.00014739,2]
[331099814,1720079443606,-1798.46,0.00014739,2]
[331099815,1720079443615,-2261.6,0.00014739,2]
[331099816,1720079443625,-1203.83,0.00014739,2]
[331099817,1720079443635,-500.0,0.00014739,2]
[331099818,1720079443644,-1025.89,0.00014739,2]
[331099819,1720079443653,-500.0,0.00014739,2]
[331099820,1720079443662,-500.0,0.00014739,2]
[331099821,1720079443672,-2172.15,0.00014739,2]
[331099822,1720079443683,-4109.01,0.00014739,2]
[331099823,1720079443693,-13714.63,0.00014739,2]
[331099824,1720079443702,-500.0,0.00014739,2]
[331099825,1720079443711,-563.77,0.00014739,2]
[331099826,1720079443721,-500.0,0.00014739,2]
[331099827,1720079443730,-1619.75,0.00014739,2]
[331099828,1720079443740,-2789.39,0.00014739,2]
[331099829,1720079443749,-500.0,0.00014739,2]
[331099830,1720079443857,-1440.72,0.0001474,2]
[331099831,1720079443866,-500.0,0.00014741,2]
[331099832,1720079443875,-500.0,0.00014741,2]
[331099833,1720079443886,-7608.44,0.00014741,2]
[331099834,1720079443895,-500.0,0.00014741,2]
[331099835,1720079443904,-500.0,0.00014741,2]
[331099836,1720079443913,-677.95,0.00014741,2]
[331099837,1720079443923,-500.0,0.00014741,2]
[331099838,1720079443934,-500.0,0.00014741,2]
[331099839,1720079443943,-783.31,0.00014741,2]
[331099840,1720079443952,-506.82999918,0.00014741,2]
[331099841,1720079443961,-500.0,0.00014741,2]
[331099842,1720079443970,-153.0,0.00014741,2]
[331099843,1720079443980,-4010.35,0.00014741,2]
[331099844,1720079443989,-886.2,0.00014741,2]
[331099845,1720079443998,-510.86,0.00014741,2]
[331099846,1720079444008,-505.40430516,0.00014741,2]
[331099847,1720079444018,-500.0,0.00014741,2]
[331099848,1720079444027,-500.0,0.00014741,2]
[331099849,1720079444036,-500.0,0.00014741,2]
[331099850,1720079444045,-1012.58,0.00014749,2]
[331099851,1720079444055,-500.0,0.00014749,2]
[331099852,1720079444064,-500.0,0.00014749,2]
[331099853,1720079444074,-1440.72,0.00014749,2]
[331099854,1720079444083,-500.0,0.00014749,2]
[331099855,1720079444092,-1348.2,0.00014749,2]
[331099856,1720079444102,-500.0,0.00014749,2]
[331099857,1720079444111,-809.38,0.00014749,2]
[331099858,1720079444120,-1091.81,0.00014749,2]
[331099859,1720079444129,-500.0,0.00014749,2]
[331099860,1720079444138,-500.0,0.00014749,2]
[331099861,1720079444147,-721.18,0.00014749,2]
[331099862,1720079444157,-500.0,0.00014749,2]
[331099863,1720079444166,-500.0,0.00014749,2]
[331099864,1720079444175,-619.93,0.00014749,2]
[331099865,1720079444187,-500.0,0.00014749,2]
[331099866,1720079444197,-500.0,0.00014749,2]
[331099867,1720079444206,-500.0,0.00014749,2]
[331099868,1720079444215,-500.0,0.00014749,2]
[331099869,1720079444225,-567.87,0.00014749,2]
[331099870,1720079444234,-500.0,0.00014749,2]
[331099871,1720079444244,-1196.33,0.00014749,2]
[331099872,1720079444253,-667.84,0.00014749,2]
[331099873,1720079444263,-500.0,0.00014749,2]
[331099874,1720079444273,-500.0,0.00014749,2]
[331099875,1720079444282,-1053.22,0.00014749,2]
[331099876,1720079444291,-500.0,0.00014749,2]
[331099877,1720079444300,-500.0,0.00014749,2]
[331099878,1720079444310,-4978.4,0.00014749,2]
[331099879,1720079444319,-500.0,0.00014749,2]
[331099880,1720079444328,-500.0,0.00014749,2]
[331099881,1720079444337,-500.0,0.00014749,2]
[331099882,1720079444346,-700.16,0.00014749,2]
[331099883,1720079444355,-500.0,0.00014749,2]
[331099884,1720079444363,-500.0,0.00014749,2]
[331099885,1720079444374,-797.62,0.00014749,2]
[331099886,1720079444383,-500.0,0.00014749,2]
[331099887,1720079444393,-500.0,0.00014749,2]
[331099888,1720079444402,-500.0,0.00014749,2]
[331099889,1720079444411,-500.0,0.00014749,2]
[331099890,1720079444419,-500.0,0.00014749,2]
[331099891,1720079444429,-500.0,0.00014749,2]
[331099892,1720079444438,-500.0,0.00014749,2]
[331099893,1720079444447,-554.28,0.0001475,2]
[331099894,1720079444456,-637.11,0.0001475,2]
[331099895,1720079444465,-500.0,0.0001475,2]
[331099896,1720079444475,-500.0,0.0001475,2]
[331099897,1720079444484,-500.0,0.0001475,2]
[331099898,1720079444493,-500.0,0.0001475,2]
[331099899,1720079444502,-500.0,0.0001475,2]
[331099900,1720079444510,-153.92,0.0001475,2]
[331099901,1720079444519,-500.0,0.0001475,2]
[331099902,1720079444528,-500.0,0.0001475,2]
[331099904,1720079444537,-500.0,0.0001475,2]
[331099905,1720079444546,-506.85301723,0.0001475,2]
[331099906,1720079444555,-500.0,0.0001475,2]
[331099907,1720079444564,-500.0,0.0001475,2]
[331099908,1720079444574,-500.0,0.0001475,2]
[331099909,1720079444583,-455.50631617,0.0001475,2]
[331099910,1720079444592,-500.0,0.0001475,2]
[331099911,1720079444601,-518.47,0.0001475,2]
[331099912,1720079444611,-1440.72,0.0001475,2]
[331099913,1720079444620,-500.0,0.0001475,2]
[331099914,1720079444629,-500.0,0.0001475,2]
[331099915,1720079444638,-500.0,0.0001475,2]
[331099916,1720079444647,-500.0,0.0001475,2]
[331099917,1720079444656,-500.0,0.0001475,2]
[331099918,1720079444665,-500.0,0.0001475,2]
[331099919,1720079444674,-500.0,0.0001475,2]
[331099920,1720079444685,-500.0,0.0001475,2]
[331099921,1720079444695,-500.0,0.0001475,2]
[331099922,1720079444704,-500.0,0.0001475,2]
[331099923,1720079444714,-398.62,0.0001475,2]
[331099924,1720079444723,-513.37416286,0.0001475,2]
[331099925,1720079444733,-500.0,0.0001475,2]
[331099926,1720079444743,-500.0,0.0001475,2]
[331099927,1720079444753,-500.0,0.0001475,2]
[331099928,1720079444763,-500.0,0.0001475,2]
[331099929,1720079444772,-500.0,0.0001475,2]
[331099930,1720079444782,-861.23,0.0001475,2]
[331099931,1720079444792,-524.62,0.0001475,2]
[331099932,1720079444804,-500.0,0.0001475,2]
[331099933,1720079444815,-500.0,0.0001475,2]
[331099934,1720079444824,-658.89,0.0001475,2]
[331099935,1720079444832,-500.0,0.0001475,2]
[331099936,1720079444843,-500.0,0.0001475,2]
[331099937,1720079444852,-713.83,0.0001475,2]
[331099938,1720079444861,-500.0,0.0001475,2]
[331099939,1720079444870,-552.24,0.0001475,2]
[331099940,1720079444880,-500.0,0.0001475,2]
[331099941,1720079444890,-500.0,0.0001475,2]
[331099942,1720079444900,-1440.72,0.00014751,2]
[331099943,1720079444910,-500.0,0.00014751,2]
[331099944,1720079444918,-500.0,0.00014751,2]
[331099945,1720079444928,-500.0,0.00014751,2]
[331099946,1720079444938,-500.0,0.00014751,2]
[331099947,1720079444947,-500.0,0.00014751,2]
[331099948,1720079444956,-586.35282653,0.00014751,2]
[331099949,1720079444965,-500.0,0.00014751,2]
[331099950,1720079444974,-322.47036302,0.00014752,2]
[331099951,1720079444983,-500.0,0.00014752,2]
[331099952,1720079444992,-10430.62,0.00014752,2]
[331099953,1720079445001,-500.0,0.00014753,2]
[331099954,1720079445011,-500.0,0.00014753,2]
[331099955,1720079445020,-5073.79,0.00014753,2]
[331099956,1720079445029,-849.5,0.00014753,2]
[331099957,1720079445038,-585.38,0.00014753,2]
[331099958,1720079445047,-766.97,0.00014753,2]
[331099959,1720079445056,-5644.26,0.00014753,2]
[331099960,1720079445065,-3089.51,0.00014753,2]
[331099961,1720079445074,-1440.72,0.00014763,2]
[331099962,1720079445083,-154.86835879,0.00014794,2]
[331099963,1720079445092,-6076.9012323,0.00014998,2]
[331099964,1720079445101,-9614.54817379,0.00014998,2]
[331099965,1720079445111,-11147.45043014,0.00014998,2]
[331099966,1720079445121,-1440.72,0.00014998,2]
[331099967,1720079445130,-3078.51196359,0.00014999,2]
[331099968,1720079445139,-1463.29635585,0.00014999,2]
[331099969,1720079445148,-1597.25650539,0.00014999,2]
[331099970,1720079445157,-789.77698638,0.00014999,2]
[331099971,1720079445166,-3130.06017381,0.00014999,4]
[331099972,1720079445175,-1634.59229075,0.00014999,2]
[331099973,1720079445188,-3114.1525814,0.00014999,2]
[331099974,1720079445203,-1596.56766806,0.00014999,2]
[331099975,1720079445212,-2129.2320514,0.00014999,2]
[331099976,1720079445222,-3137.77932824,0.00014999,2]
[331099977,1720079445232,-2832.46914027,0.00015,2]
[331099978,1720079445241,-1104.60661146,0.00015,2]
[331099979,1720079445250,-154.83742071,0.00015,2]
[331099980,1720079445258,-395.4705443,0.00015,2]
[331099981,1720079445268,-808.0087546,0.00015,2]
[331099982,1720079445277,-334.21233884,0.00015006,2]
[331099983,1720079445286,-500.0,0.00015013,2]
[331099984,1720079445295,-616.37048645,0.00015013,2]
[331099985,1720079445304,-500.0,0.00015013,2]
[331099986,1720079445314,-729.02,0.00015013,2]
[331099987,1720079445323,-500.0,0.00015013,2]
[331099988,1720079445331,-500.0,0.00015013,2]
[331099989,1720079445340,-1798.46,0.00015013,2]
[331099990,1720079445349,-2261.6,0.00015013,2]
[331099991,1720079445359,-1203.83,0.00015013,2]
[331099992,1720079445370,-500.0,0.00015013,2]
[331099993,1720079445380,-1025.89,0.00015013,2]
[331099994,1720079445389,-500.0,0.00015013,2]
[331099995,1720079445398,-500.0,0.00015013,2]
[331099996,1720079445407,-2172.15,0.00015013,2]
[331099997,1720079445416,-4109.01,0.00015013,2]
[331099998,1720079445425,-13714.63,0.00015013,2]
[331099999,1720079445437,-500.0,0.00015013,2]
[331100000,1720079445446,-563.77,0.00015013,2]
[331100001,1720079445454,-500.0,0.00015013,2]
[331100002,1720079445463,-1619.75,0.00015013,2]
[331100003,1720079445472,-2789.39,0.00015013,2]
[331100004,1720079445480,-500.0,0.00015013,2]
[331100005,1720079445490,-500.0,0.00015015,2]
[331100006,1720079445499,-500.0,0.00015015,2]
[331100007,1720079445508,-7608.44,0.00015015,2]
[331100008,1720079445516,-500.0,0.00015015,2]
[331100009,1720079445525,-500.0,0.00015015,2]
[331100010,1720079445535,-677.95,0.00015015,2]
[331100012,1720079445544,-500.0,0.00015015,2]
[331100014,1720079445553,-500.0,0.00015015,2]
[331100015,1720079445563,-783.31,0.00015015,2]
[331100018,1720079445572,-4010.35,0.00015015,2]
[331100020,1720079445581,-886.2,0.00015015,2]
[331100023,1720079445590,-510.86,0.00015015,2]
[331100024,1720079445599,-500.0,0.00015015,2]
[331100025,1720079445609,-500.0,0.00015015,2]
[331100026,1720079445618,-500.0,0.00015015,2]
[331100027,1720079445627,-1012.58,0.00015023,2]
[331100028,1720079445636,-340.30223837,0.00015023,2]
[331100029,1720079445645,-500.0,0.00015023,2]
[331100030,1720079445654,-500.0,0.00015023,2]
[331100031,1720079445662,-1348.2,0.00015023,2]
[331100032,1720079445671,-500.0,0.00015023,2]
[331100033,1720079445680,-809.38,0.00015023,2]
[331100034,1720079445689,-1091.81,0.00015023,2]
[331100036,1720079445698,-500.0,0.00015023,2]
[331100037,1720079445707,-500.0,0.00015023,2]
[331100038,1720079445715,-721.18,0.00015023,2]
[331100039,1720079445724,-381.73,0.00015023,2]
[331100040,1720079445733,-500.0,0.00015023,2]
[331100041,1720079445742,-619.93,0.00015023,2]
[331100042,1720079445750,-500.0,0.00015023,2]
[331100043,1720079445759,-500.0,0.00015023,2]
[331100044,1720079445768,-500.0,0.00015023,2]
[331100045,1720079445777,-567.87,0.00015023,2]
[331100046,1720079445786,-1196.33,0.00015023,2]
[331100047,1720079445795,-667.84,0.00015023,2]
[331100048,1720079445808,-500.0,0.00015023,2]
[331100049,1720079445817,-500.0,0.00015023,2]
[331100050,1720079445825,-1053.22,0.00015023,2]
[331100051,1720079445834,-500.0,0.00015023,2]
[331100052,1720079445843,-4978.4,0.00015023,2]
[331100053,1720079445852,-500.0,0.00015023,2]
[331100054,1720079445861,-500.0,0.00015023,2]
[331100055,1720079445870,-500.0,0.00015023,2]
[331100056,1720079445879,-700.16,0.00015023,2]
[331100057,1720079445890,-500.0,0.00015023,2]
[331100058,1720079445899,-500.0,0.00015023,2]
[331100059,1720079445909,-797.62,0.00015023,2]
[331100060,1720079445918,-500.0,0.00015023,2]
[331100063,1720079446020,-500.0,0.00015023,2]
[331100064,1720079446030,-500.0,0.00015023,2]
[331100066,1720079446040,-500.0,0.00015023,2]
[331100068,1720079446050,-500.0,0.00015023,2]
[331100069,1720079446062,-554.28,0.00015024,2]
[331100070,1720079446071,-637.11,0.00015024,2]
[331100071,1720079446081,-500.0,0.00015024,2]
[331100072,1720079446090,-500.0,0.00015024,2]
[331100073,1720079446099,-500.0,0.00015024,2]
[331100074,1720079446108,-500.0,0.00015024,2]
[331100075,1720079446117,-500.0,0.00015024,2]
[331100076,1720079446127,-618.63761294,0.00015024,2]
[331100077,1720079446136,-614.67263304,0.00015024,2]
[331100078,1720079446146,-500.0,0.00015024,2]
[331100079,1720079446155,-500.0,0.00015024,2]
[331100080,1720079446164,-500.0,0.00015024,2]
[331100081,1720079446173,-500.0,0.00015024,2]
[331100082,1720079446183,-518.47,0.00015024,2]
[331100083,1720079446193,-1440.72,0.00015024,2]
[331100084,1720079446202,-1440.72,0.00015024,2]
[331100086,1720079446211,-1440.72,0.00015024,2]
[331100087,1720079446221,-249.91626375,0.00015024,2]
[331100088,1720079446230,-1440.72,0.00015024,2]
[331100089,1720079446239,-1440.85787717,0.00015024,2]
[331100090,1720079446249,-500.0,0.00015024,2]
[331100091,1720079446258,-500.0,0.00015024,2]
[331100092,1720079446267,-500.0,0.00015024,2]
[331100093,1720079446277,-611.79097499,0.00015024,2]
[331100094,1720079446286,-500.0,0.00015024,2]
[331100095,1720079446295,-500.0,0.00015024,2]
[331100096,1720079446305,-500.0,0.00015024,2]
[331100097,1720079446314,-500.0,0.00015024,2]
[331100098,1720079446323,-500.0,0.00015024,2]
[331100099,1720079446333,-500.0,0.00015024,2]
[331100100,1720079446342,-230.73722298,0.00015024,2]
[331100101,1720079446352,-500.0,0.00015024,2]
[331100102,1720079446361,-500.0,0.00015024,2]
[331100103,1720079446372,-861.23,0.00015024,2]
[331100104,1720079446381,-524.62,0.00015024,2]
[331100105,1720079446390,-500.0,0.00015024,2]
[331100106,1720079446400,-500.0,0.00015024,2]
[331100107,1720079446409,-658.89,0.00015024,2]
[331100108,1720079446419,-500.0,0.00015024,2]
[331100109,1720079446428,-500.0,0.00015024,2]
[331100110,1720079446439,-713.83,0.00015024,2]
[331100111,1720079446448,-500.0,0.00015024,2]
[331100112,1720079446458,-552.24,0.00015024,2]
[331100113,1720079446467,-500.0,0.00015024,2]
[331100114,1720079446476,-500.0,0.00015024,2]
[331100115,1720079446486,-500.0,0.00015025,2]
[331100116,1720079446494,-500.0,0.00015025,2]
[331100117,1720079446503,-500.0,0.00015025,2]
[331100119,1720079446512,-500.0,0.00015025,2]
[331100120,1720079446521,-500.0,0.00015025,2]
[331100121,1720079446531,-500.0,0.00015026,2]
[331100122,1720079446540,-10430.62,0.00015026,2]
[331100123,1720079446549,-500.0,0.00015027,2]
[331100124,1720079446558,-500.0,0.00015027,2]
[331100125,1720079446567,-5073.79,0.00015027,2]
[331100126,1720079446576,-849.5,0.00015027,2]
[331100127,1720079446586,-585.38,0.00015027,2]
[331100128,1720079446595,-766.97,0.00015027,2]
[331100129,1720079446604,-5644.26,0.00015027,2]
[331100130,1720079446614,-3089.51,0.00015027,2]
[331100131,1720079446623,-858.47517737,0.00015276,2]
[331100132,1720079446632,-500.0,0.00015287,2]